Cogmind - Beta 16.1 @@@ ROGUE MODE // 2026.02.19 @ 03:31:06 Player: Sen Result: Destroyed by D-53 Grenadier with Mini Grenade Launcher Performance ------------- Evolutions (0) 0 Regions Visited (2) 400 Robots Destroyed (17) 85 Value Destroyed (360) 360 Prototype IDs (0) 0 Alien Tech Used (0) 0 Bonus (0) 0 TOTAL SCORE: 845 Bonus ------- None Cogmind --------- Core Integrity 0/250 Matter 300/300 Energy 100/100 System Corruption 0% Temperature Cool (0) Movement Rolling (110) Ox2 Location -10/Mines Parts ------- > --- POWER (1) -------- (None) > --- PROPULSION (2) --- Wheel > --- UTILITY (2) ------ Improved Heat Sink Large Storage Unit > --- WEAPON (2) ------- (None) > --- INVENTORY (15) --- Light Ion Engine Light Ion Engine Light Nuclear Core Wheel Wheel Wheel Wheel Compact Wheel Compact Wheel Improved Heat Sink Terrain Scan Processor Light Assault Rifle Mining Laser Welding Torch Peak State ------------ > --- POWER ------------ Light Nuclear Core > --- PROPULSION ------- Wheel Compact Wheel > --- UTILITY ---------- Improved Heat Sink Large Storage Unit > --- WEAPON ----------- Particle Gun Assault Rifle > --- INVENTORY -------- Ion Engine Light Nuclear Core Aluminum Leg Aluminum Leg Aluminum Leg Aluminum Leg Aluminum Leg Aluminum Leg Improved Heat Sink Light Cannon [Rating: 13] Favorites ----------- Power Ion Engine Engine Ion Engine Power Core Light Nuclear Core Propulsion Wheel Wheel Wheel Utility Large Storage Unit Device Improved Heat Sink Storage Large Storage Unit Protection Backup Plating I Weapon Assault Rifle Energy Gun Particle Gun Ballistic Gun Assault Rifle Ballistic Cannon Light Cannon Build | -11 -10 -10 ------- Run | Yrd Mat Min Slots Evolved . | . . . Power . | . . . Propulsion . | . . . Utility . | . . . Weapon . | . . . Parts Attached 13 | 6 4 3 Power 2 | 1 1 . Engine 1 | 1 . . Core 1 | . 1 . Reactor . | . . . Propulsion 4 | 2 . 2 Treads . | . . . Leg . | . . . Wheel 4 | 2 . 2 Hover . | . . . Flight . | . . . Utility 3 | 1 2 . Device 1 | . 1 . Storage 2 | 1 1 . Processor . | . . . Hackware . | . . . Protection . | . . . Artifact . | . . . Weapon 4 | 2 1 1 Energy Gun 2 | 1 1 . Energy Cannon . | . . . Ballistic Gun 1 | 1 . . Ballistic Cannon 1 | . . 1 Launcher . | . . . Special Weapon . | . . . Impact Weapon . | . . . Slashing Weapon . | . . . Piercing Weapon . | . . . Special Melee Weapon . | . . . Unidentified Prototypes . | . . . Parts Lost 8 | . 1 7 Power 1 | . . 1 Propulsion 3 | . . 3 Utility 1 | . 1 . Weapon 3 | . . 3 Highest Loss Streak 5 | . 1 5 To Critical Strikes . | . . . Average Backups 8 | . 6 12 Power 1 | . 1 2 Propulsion 3 | . 3 6 Utility 1 | . 1 1 Weapon 1 | . 1 1 Tool/Special . | . . . Unused Backups 21 | 1 9 11 Power 5 | 1 1 3 Propulsion 10 | . 6 4 Utility 3 | . 1 2 Weapon 2 | . 1 1 Tool/Special 1 | . . 1 Average Slot Usage (%) 97 | . 97 96 Engine 7 | . 4 11 Core 6 | . 9 1 Wheel 27 | . 27 26 Device 7 | . 3 14 Storage 14 | . 14 14 Protection 5 | . 9 . Energy Gun 13 | . 13 12 Ballistic Gun 11 | . 14 8 Ballistic Cannon 1 | . . 4 Peak Build Rating 13 | 6 13 13 Average Rating 9 | 4 9 11 On Entrance 6 | . 6 13 Avg Prop Armor Cover (%) . | . . . Naked Turns . | . . . Heaviest Build 32 | 14 31 32 Greatest Support 26 | 26 26 26 Greatest Overweight (x) 2 | . 1 2 Average Overweight (x) . | . . 1 Largest Inventory Capacity 15 | 8 15 15 Average Capacity 12 | 7 11 15 Most Carried 15 | 3 12 15 Average Carried 8 | . 7 12 Final Capacity 15 | 8 15 15 Final Carried 14 | . 12 14 Class Distribution -------------------- 100% | Mutant Dominant Class ---------------- Mutant | -10/Materials Mutant | -10/Mines Resources | -11 -10 -10 ----------- Run | Yrd Mat Min Matter Collected 530 | 200 141 189 Remotely . | . . . Salvage Created 596 | . 310 286 Parts 38 | . 16 22 Haulers Intercepted . | . . . Recyclers Shooed . | . . . Parts Field Recycled . | . . . Retrieved Matter . | . . . Parts Self-Destructed . | . . . Prevented . | . . . Parts Restored . | . . . Kills | -11 -10 -10 ------- Run | Yrd Mat Min Combat Hostiles Destroyed 13 | . 5 8 Guns 12 | . 5 7 Cannons 1 | . . 1 Classes Destroyed 4 | . 2 2 Builder 1 | . . 1 Recycler 3 | . 1 2 Swarmer 6 | . . 6 Grunt 7 | . 5 2 Best Kill Streak 5 | . 4 5 Combat Bots Only 3 | . 2 3 Max Kills in Single Turn 1 | . 1 1 Gunslinging . | . . . Exploded . | . . . Melee . | . . . Uniques/NPCs Destroyed . | . . . Combat | -11 -10 -10 -------- Run | Yrd Mat Min Hostile Shots Fired 75 | . 21 54 Missed 20 | . 7 13 Hits 55 | . 14 41 Projectile 55 | . 14 41 AOE 9 | . . 9 Critical Strikes 2 | . 1 1 Damage Taken 848 | . 167 681 Core 251 | . 34 217 Absorbed by Shields . | . . . Core Remaining (%) 100 | 100 . . Volleys Fired 46 | . 19 27 Largest 2 | . 2 2 Hottest 95 | . 85 95 Shots Fired 92 | . 38 54 Gun 85 | . 38 47 Cannon 7 | . . 7 Launcher . | . . . Special . | . . . Kinetic 46 | . 19 27 Thermal 46 | . 19 27 Explosive . | . . . Electromagnetic . | . . . Robot Hit Streak 17 | . 17 7 Robot Miss Streak 3 | . 3 3 Penetration Max . | . . . Secondary Targets 2 | . . 2 Max Gunslinging Chain 1 | . . 1 Shots Hit Robots 60 | . 29 31 Core Hits 28 | . 14 14 Critical Kills . | . . . Critical Parts Destroyed . | . . . Critical Strikes 2 | . 1 1 Burn 2 | . 1 1 Melee Attacks . | . . . Impact . | . . . Slashing . | . . . Piercing . | . . . Sneak Attacks . | . . . Combat Hostiles . | . . . Follow-up Attacks . | . . . Damage Inflicted 832 | . 360 472 Guns 746 | . 360 386 Cannons 86 | . . 86 Explosions . | . . . Melee . | . . . Ramming . | . . . Kinetic 413 | . 171 242 Thermal 419 | . 189 230 Explosive . | . . . Electromagnetic . | . . . Impact . | . . . Slashing . | . . . Piercing . | . . . Highest Corruption . | . . . Average Corruption . | . . . Corruption Purged . | . . . Corruption Blocked . | . . . Overload Shots . | . . . Overflow Damage . | . . . Projectiles . | . . . Explosions . | . . . Melee . | . . . Knockbacks 1 | . . 1 Impact . | . . . Kinetic . | . . . Secondary 1 | . . 1 Self-Inflicted Damage . | . . . Shots . | . . . Rammed . | . . . Targets Rammed . | . . . Kicked . | . . . Crushed . | . . . Highest Temperature 165 | . 165 21 Average Temperature 63 | . 71 9 Received Heat Transfer 177 | . 81 96 Siege Activations . | . . . Martial Activations . | . . . Shielding Activations . | . . . Robots Disrupted . | . . . Combat Hostiles . | . . . Robots Corrupted . | . . . Combat Hostiles . | . . . Parts Fried . | . . . Impact Corruptions . | . . . Robots Melted . | . . . Combat Hostiles . | . . . Parts Melted 4 | . 2 2 Heat Transferred 1258 | . 629 629 Parts Sabotaged . | . . . Parts Stolen . | . . . Parts Stripped . | . . . Power Chain Reactions . | . . . Alert | -11 -10 -10 ------- Run | Yrd Mat Min Maximum Alert Level . | . . . Low Security (%) 100 | 100 100 100 Level 1 . | . . . Level 2 . | . . . Level 3 . | . . . Level 4 . | . . . Level 5 . | . . . High Security . | . . . Max Security . | . . . Peak Influence 95 | . 65 95 Initial . | . . . Average 30 | . 18 57 Influence Increases 351 | . 146 205 Destroy 0b10 Robot/C 260 | . 100 160 Destroy 0b10 Robot/NC 20 | . 5 15 Destroy Leader 60 | . 30 30 Successful Hack 11 | . 11 . Influence Decreases 336 | . 146 190 Time Decay 256 | . 136 120 Lost Part 80 | . 10 70 Squads Dispatched 1 | . 1 . Investigation 1 | . 1 . Extermination . | . . . Reinforcement . | . . . Assault . | . . . Garrison . | . . . Intercept . | . . . Searches Triggered . | . . . Construction Impeded . | . . . Haulers Reinforced . | . . . Active Scanning Responses . | . . . Cargo Convoy Interrupts . | . . . Stealth | -11 -10 -10 --------- Run | Yrd Mat Min Distress Signals 2 | . 2 . Communications Jammed . | . . . Distress Signals . | . . . Times Spotted 17 | . 7 10 Peak Tracking Total 3 | . 2 3 Tactical Retreats . | . . . Traps | -11 -10 -10 ------- Run | Yrd Mat Min Traps Triggered 4 | . 4 . Indirectly . | . . . Trap Hack Attempts . | . . . Triggered . | . . . Disarmed . | . . . Reprogrammed . | . . . Reused . | . . . Traps Extracted . | . . . Installed . | . . . Triggered . | . . . Machines | -11 -10 -10 ---------- Run | Yrd Mat Min Machines Disabled . | . . . Max in Single Turn . | . . . Machines Repaired . | . . . Machines Dismantled . | . . . Machines Sabotaged . | . . . Overloaded Fab Kills . | . . . Hacking | -11 -10 -10 --------- Run | Yrd Mat Min Machines Accessed 3 | . 3 . Terminals 2 | . 2 . Fabricators . | . . . Repair Stations 1 | . 1 . Recycling Units . | . . . Scanalyzers . | . . . Garrison Access . | . . . Total Hacks 4 | . 4 . Successful 4 | . 4 . Failed . | . . . Catastrophic . | . . . Database Lockouts . | . . . Manual . | . . . Terminals 3 | . 3 . Fabricators . | . . . Repair Stations 1 | . 1 . Recycling Units . | . . . Scanalyzers . | . . . Garrison Access . | . . . Terminal Hacks 3 | . 3 . Branch Access Points 1 | . 1 . Locate Traps 1 | . 1 . Zone Layout 1 | . 1 . Fabricator Hacks . | . . . Repair Station Hacks 1 | . 1 . Refit 1 | . 1 . Recycling Unit Hacks . | . . . Scanalyzer . | . . . Garrison Access Hacks . | . . . Unauthorized Hacks . | . . . Terminals . | . . . Fabricators . | . . . Repair Stations . | . . . Recycling Units . | . . . Scanalyzers . | . . . Garrison Access . | . . . Data Cores Recovered . | . . . Used . | . . . Hacking Detections 2 | . 2 . Full Trace Events . | . . . Feedback Events . | . . . Feedback Blocked . | . . . Robot Schematics Acquired . | . . . Robots Built . | . . . Authchips . | . . . Time . | . . . Total Robot Build Rating . | . . . Part Schematics Acquired . | . . . Parts Built . | . . . Authchips . | . . . Time . | . . . Total Part Build Rating . | . . . Part Studies Acquired . | . . . Parts Repaired . | . . . Time . | . . . Parts Recycled . | . . . Recycled Matter . | . . . Retrieved Matter . | . . . Retrieved Components . | . . . Parts Scanalyzed . | . . . Part Schematics Acquired . | . . . Parts Damaged . | . . . Bothacking | -11 -10 -10 ------------ Run | Yrd Mat Min Used RIF Installer . | . . . Robots Hacked . | . . . Non-combat . | . . . Combat . | . . . Robot Hacks Applied . | . . . Relay Couplers Released . | . . . Fabnet Peak Effective % . | . . . Robots Rewired . | . . . Allies Hacked . | . . . Hacks Repelled . | . . . Allies | -11 -10 -10 -------- Run | Yrd Mat Min Total Allies . | . . . Largest Group . | . . . Highest-Rated Group . | . . . Highest-Rated Ally . | . . . Total Orders . | . . . Ally Attacks . | . . . Total Damage . | . . . Kills . | . . . Allies Corrupted . | . . . Allies Melted . | . . . Intel | -11 -10 -10 ------- Run | Yrd Mat Min Active Infowar (turns) . | . . . Robot Analysis Total . | . . . Derelict Logs Recovered . | . . . Drone Launches . | . . . Drone Recoveries . | . . . Exploration | -11 -10 -10 ------------- Run | Yrd Mat Min Turns Passed 719 | 56 406 257 Spaces Moved 501 | 49 301 151 Core 4 | 4 . . Treads . | . . . Legs . | . . . Wheels 497 | 45 301 151 Hover . | . . . Flight . | . . . Fastest Speed 50 | 50 90 95 Average Speed 97 | 86 97 101 Slowest Speed 115 | 90 115 110 Overloaded Moves . | . . . Propulsion Burnouts . | . . . Robots Hopped . | . . . Potential Cave-ins . | . . . Cave-ins Triggered . | . . . Exploration Rate (%) 25 | 4 40 31 Regions Visited 2 Branch Regions 1 Pre-discovered Areas . | . . . Known Exits Taken 1 | . 1 . Unknown Exits Taken 1 | 1 . . Scrap Searched . | . . . Spaces Dug . | . . . Terrain Destroyed . | . . . Melee . | . . . Projectile . | . . . AOE . | . . . Terrain Rammed . | . . . Walls Destroyed . | . . . Machines Disabled . | . . . Actions | -11 -10 -10 --------- Run | Yrd Mat Min Total 638 | 61 377 200 Wait 28 | 3 15 10 Move 499 | 48 300 151 Hop . | . . . Pick Up 31 | 3 22 6 Fast Attach 10 | 4 6 . Attach 6 | 2 1 3 Detach 1 | . 1 . Swap 4 | . 2 2 Drop 13 | 1 11 1 Fire 46 | . 19 27 Melee . | . . . Ram . | . . . Kick . | . . . Crush . | . . . Escape Stasis . | . . . Rewire . | . . . Trap . | . . . Miscellaneous . | . . . Route ------- -11/Scrapyard -10/Materials (discovered 2 exits: [*Mat] / *Min) -10/Mines (discovered 1 exit: [*Mat]) History --------- Turn | Location | Event 16 | -11/Scrapyard | Discovered new exit (range 15) 57 | -11/Scrapyard | Entered Materials 307 | -10/Materials | Build established: Mutant 354 | -10/Materials | Discovered new exit (range 8) 358 | -10/Materials | Identified exit to Mines 463 | -10/Materials | Entered Mines 542 | -10/Mines | Discovered new exit (range 9) 616 | -10/Mines | Core integrity fell below 50% 674 | -10/Mines | Assembled infested the area 679 | -10/Mines | Assisted by a Guerilla fighting off Assembled 709 | -10/Mines | Core integrity fell below 20% 720 | -10/Mines | Destroyed by D-53 Grenadier with Mini Grenade Launcher Last Messages --------------- 00674_ ALERT: Infestation in the mines, dispatching Demolisher response squad. 00676_ Acquired Lgt. Ion Engine. 00678_ Acquired Com. Wheel. 00684_ Acquired Lgt. Assault Rifle. 00699_ C-45 Heavy ARC bursts open, deploying its payload. 00699_ D-53 Grenadier unfolds itself. 00703_ U-05 Engineer lays Concrete. 00704_ Particle Gun destroyed. 00704_ Wheel destroyed. 00704_ U-05 Engineer lays Concrete. 00710_ Wheel destroyed. 00710_ U-05 Engineer lays Concrete. 00711_ Acquired 5 matter. 00711_ Ion Engine destroyed. 00711_ U-05 Engineer lays Concrete. 00713_ The unstable cave ceiling collapses. 00714_ U-05 Engineer lays Concrete. 00717_ Lgt. Cannon destroyed. Map ----- +----------------------------------------------------+ | ??????????????????????????????????????????? #? | | ??????????????????????????????????????????! #? | | ?????????????????????????????????????????%! #? | | ????????????????????????????????????????=== #? | | ??????????????????????????????????????? =??? | | ?????????????## ??????????????#####??? ???? | | ?????????????? ????????????## #### #????? | | ?????????????"" ??????# ##### #????? | | ?????????????"" ?????#"%" #????? | | ????????????""" #??????????# #????? | | ???????????? ###?####### ###????? | | ?????????????? ## ##??????? | | ???????????????? #???????? | | ??????????????????? #???????? | | ???????????????????## ##???????? | | ???????????????????# d # ##????????? | | ???????????????????# d ####?????????? | | ???????????????????# ##????????????? | | ???????????????????# ##?????????????? | | ???????????????????# #???????????????? | | ???????????????????# ! #???????????????? | | ????????????????##### #????????????????? | | ???????????????## ### ##??????????????????? | | ???????????????# ##?????????????????? | | ???????????????# #?????????????????? | | ???????????????# @ ##?????????????????? | | ???????????????## #??????????????????? | | ????????????????# ####??????????????????? | | ???????? ## %#########?????????????? | | ??????????# !*%= #?????????????? | | ??????????## !== ##########????? | | ???????????# ## ### #????? | | ???????????## #?## #?#= #????? | | ????????????#####???# ##?# ######### #????? | | ????????????????????## ##??#=#???????# #????? | | ?????????????????????####?### #?####### ###### | | ??????????????????????????# #?# # | | ??????????????????????????# ###?# """ # | | ??????????????????????????# #???# """ # | | ??????????????????????????# #???# """ # | | ??????????????############# #???# # | | ??????????????# * | #???# """ """ # | | ??????????????# #############???# """ """ # | | ??????????????# #???????????????# """ """ # | | ??????????????#=#???????????????# # | | ????????????### ###???????????????? # | | ????????????# =% #????????????????#####?##### | | ????????????# ! #??????????????????????????? | | ????????????# #??????????????????????????? | | ????????????# < #??????????????????????????? | +----------------------------------------------------+ Best States ------------- Heat Dissipation 39 Energy Generation 14 Energy Capacity 250 Matter Stores 300 Matter Capacity 300 Sight Range 16 Terrain Scan Density 10 Armor Coverage 80 Evasion (%) 42 Item Schematics ----------------- None Robot Schematics ------------------ None Fabricated ------------ Nothing Repaired ---------- Nothing Studied --------- None Alien Tech Used ----------------- None Achievements -------------- Fitting Room Challenges ------------ None Game ------ Seed GrapheneNeutronLattice Manual? 0 Play Time 00:13:30 Cumulative 77.7 hours Start 2026.02.18 @ 23:30:56 End 2026.02.19 @ 03:31:06 Sessions 3 Manual Loads 0 Difficulty Rogue Special Mode None Game No. 72 Rogue 72 Adventurer 0 Explorer 0 Win Type - Total 0 Types 0/0/0/0/0/0/0/0/0/0 Lore% 34 Gallery% 36 Achievement% 23 Wizard Run 0 Options --------- Layout 1 ASCII 1 Keyboard 1 Movement Numpad Keybinds 0 Fullscreen 1 Font 24/Smallcaps Map View 50x35 Zoom Use 0% Tactical HUD 1 Map Filters NONE Filters NONE Steam 1 RUN: 9b6c0e98-3ba4-4297-b8c0-95d2b1f01b0a